Cogmind - Beta 9.6 @@@ ROGUE MODE // 2020.07.09 @ 08:51:20 Player: Finestep Result: Destroyed by G-50 Soldier with Heavy Laser Performance ------------- Evolutions (5) 2500 Regions Visited (19) 3800 Robots Destroyed (340) 1700 Value Destroyed (12058) 12058 Prototype IDs (44) 880 Alien Tech Used (0) 0 Bonus (2660) 2660 TOTAL SCORE: 23598 Bonus ------- High Alert Combat Kills 432 Follower Combat Kills 1264 Met Data Miner 300 Met Imprinter 300 Met R17 at Cetus 500 Friendly Fire -136 Cogmind --------- Core Integrity 0/1000 Matter 20/300 Energy 25/100 System Corruption 0% Temperature Cool (27) Movement Treading (160) Location -5/Hub_04(d) Parts ------- > --- POWER (1) -------- (None) > --- PROPULSION (2) --- Centrium Heavy Treads > --- UTILITY (12) ----- Improved Coolant Injector Large Storage Unit Large Storage Unit Advanced Signal Interpreter Advanced Targeting Computer Advanced Targeting Computer Improved Core Analyzer Improved Armor Integrity Analyzer Light Regenerative Plating Light Regenerative Plating > --- WEAPON (2) ------- Improved KE Penetrator Ionic Axe > --- INVENTORY (16) --- Fusion Compressor Long-range Sensor Array Advanced Particle Charger Improved Hacking Suite System Restoration Module Heavy Proton Missile Launcher Peak State ------------ > --- POWER ------------ Quantum Reactor > --- PROPULSION ------- Centrium Heavy Treads > --- UTILITY ---------- Improved Coolant Injector Large Storage Unit Large Storage Unit Advanced Signal Interpreter Advanced Terrain Scan Processor Advanced Targeting Computer Improved Core Analyzer Improved Armor Integrity Analyzer Precision Matter Filter Centrium Medium Armor Plating Light Regenerative Plating Light Regenerative Plating > --- WEAPON ----------- Improved KE Penetrator Improved KE Penetrator > --- INVENTORY -------- Centrium Heavy Treads Centrium Heavy Treads Fusion Compressor Long-range Sensor Array Advanced Targeting Computer Advanced Particle Charger Makeshift Transmission Jammer Improved Hacking Suite System Restoration Module Neutron Cannon Improved KE Penetrator Mass Driver Ionic Axe [Rating: 109] Favorites ----------- Power Light Angular Momentum Engine Engine Light Angular Momentum Engine Power Core Micro Fission Core Reactor Antimatter Reactor Propulsion Medium Treads Treads Medium Treads Wheel Armored Wheel Utility High-capacity Storage Unit Device Long-range Sensor Array Storage High-capacity Storage Unit Processor Improved Targeting Computer Hackware Hacking Suite Protection Light Regenerative Plating Weapon Compact Ion Cannon Energy Gun Cooled Pulse Rifle Energy Cannon Compact Ion Cannon Ballistic Gun Improved Assault Rifle Ballistic Cannon Gauss Cannon Launcher Guided EMP Blaster Special Weapon Mining Laser Slashing Weapon Phasing Sabre Build | -11 -10 -9 -9 -8 -7 -7 -7 -7 -6 -6 -6 -6 -6 -5 -5 -5 -5 -5 -5 ------- Run | Scr Mat Mat Sto Mat Fac Low Low Zio Pro Fac Low Low Dat Pro Fac Ext Cet Arc Hub Slots Evolved 10 | . . 2 . 2 2 . . . . 2 . . . . 2 . . . . Power . | . . . . . . . . . . . . . . . . . . . . Propulsion . | . . . . . . . . . . . . . . . . . . . . Utility 10 | . . 2 . 2 2 . . . . 2 . . . . 2 . . . . Weapon . | . . . . . . . . . . . . . . . . . . . . Parts Attached 390 | 7 19 21 37 20 36 13 12 5 13 47 4 6 1 27 42 22 28 9 21 Power 33 | 1 3 2 5 3 3 . 2 . 1 3 . . . 1 6 1 1 . 1 Engine 23 | 1 3 2 5 3 2 . 1 . . 1 . . . 1 3 1 . . . Core 7 | . . . . . 1 . 1 . . 2 . . . . 3 . . . . Reactor 3 | . . . . . . . . . 1 . . . . . . . 1 . 1 Propulsion 49 | 2 5 5 11 4 3 . 1 1 1 5 . 1 . 4 1 1 2 . 2 Treads 37 | 1 2 1 11 4 2 . 1 1 1 3 . 1 . 3 1 1 2 . 2 Leg . | . . . . . . . . . . . . . . . . . . . . Wheel 12 | 1 3 4 . . 1 . . . . 2 . . . 1 . . . . . Hover . | . . . . . . . . . . . . . . . . . . . . Flight . | . . . . . . . . . . . . . . . . . . . . Utility 174 | 2 2 4 5 6 15 9 4 4 9 23 4 2 1 13 25 15 14 8 9 Device 88 | . . . 1 2 7 7 2 1 6 14 3 1 1 8 17 7 4 3 4 Storage 12 | 2 2 1 . . 1 . . . 1 . . . . . 1 2 2 . . Processor 14 | . . . . 2 3 . . . . 1 . 1 . . 2 3 1 . 1 Hackware 3 | . . . 1 1 1 . . . . . . . . . . . . . . Protection 57 | . . 3 3 1 3 2 2 3 2 8 1 . . 5 5 3 7 5 4 Artifact . | . . . . . . . . . . . . . . . . . . . . Weapon 134 | 2 9 10 16 7 15 4 5 . 2 16 . 3 . 9 10 5 11 1 9 Energy Gun 20 | 1 4 3 1 1 6 . . . . 4 . . . . . . . . . Energy Cannon 33 | . . 3 6 1 3 2 2 . 1 5 . 1 . 2 4 . 2 . 1 Ballistic Gun 41 | 1 5 4 7 5 2 . . . . 3 . . . . . 2 8 1 3 Ballistic Cannon 15 | . . . 1 . 2 . 1 . . 1 . . . 3 4 2 . . 1 Launcher 15 | . . . . . 2 2 2 . 1 1 . 1 . 2 . 1 1 . 2 Special Weapon 1 | . . . 1 . . . . . . . . . . . . . . . . Impact Weapon . | . . . . . . . . . . . . . . . . . . . . Slashing Weapon 9 | . . . . . . . . . . 2 . 1 . 2 2 . . . 2 Piercing Weapon . | . . . . . . . . . . . . . . . . . . . . Special Melee Weapon . | . . . . . . . . . . . . . . . . . . . . Unidentified Prototypes 20 | . . 4 3 2 4 . . 1 1 1 . . . . 1 . 2 . 1 Parts Lost 66 | . 5 2 4 1 2 . 3 . . 10 . 2 . 7 8 3 3 . 16 Power 12 | . . 1 1 . 1 . . . . 3 . . . 1 3 . . . 2 Propulsion 15 | . 2 . . . . . 1 . . 3 . 1 . 4 1 1 . . 2 Utility 16 | . . . 2 . . . 1 . . 1 . 1 . . 2 1 1 . 7 Weapon 23 | . 3 1 1 1 1 . 1 . . 3 . . . 2 2 1 2 . 5 Highest Loss Streak 16 | . 3 1 2 1 1 . 2 . . 6 . 2 . 3 6 3 1 . 16 Average Slot Usage (%) 97 | . 96 99 99 99 94 100 99 99 99 99 100 99 100 96 93 93 92 94 89 Engine 5 | . 11 10 10 8 2 7 6 7 5 . 6 6 6 6 3 1 4 . . Treads 10 | . 14 2 20 17 5 15 14 14 15 5 13 12 13 7 3 4 5 5 5 Wheel 2 | . 13 19 1 . 4 . . . . 7 . . . 2 1 . . . . Device 12 | . . . 1 3 8 12 13 15 16 18 18 20 20 14 19 24 5 10 9 Storage 22 | . 28 33 33 27 23 23 23 23 23 20 20 20 20 20 17 17 19 17 15 Processor 11 | . . . . 13 11 15 12 7 7 11 13 13 13 13 16 20 29 29 29 Protection 11 | . . 11 7 8 15 9 10 14 13 15 14 13 13 18 14 5 13 11 10 Energy Cannon 4 | . . 3 5 1 3 6 6 7 7 6 . . . 3 3 6 1 . . Ballistic Gun 5 | . 21 16 14 14 6 . . . . 1 6 6 6 . . 2 7 10 8 Ballistic Cannon 3 | . . . . . . 7 7 7 7 1 . . . 4 6 2 . . . Naked Turns . | . . . . . . . . . . . . . . . . . . . . Heaviest Build 150 | 15 74 111 115 117 126 127 133 150 135 138 130 131 128 136 142 132 115 113 108 Greatest Support 80 | 20 20 32 40 40 56 56 56 50 50 50 48 48 48 56 70 70 80 80 80 Greatest Overweight (x) 10 | 1 7 10 3 2 4 2 2 2 2 5 2 2 2 4 5 1 1 1 1 Average Overweight (x) 2 | . 6 4 2 2 3 2 2 2 2 4 2 2 2 3 2 1 1 1 . Largest Inventory Capacity 28 | 8 20 28 28 28 28 28 28 28 28 28 28 28 28 28 28 28 26 24 24 Average Capacity 27 | 6 19 27 28 28 28 28 28 28 28 28 28 28 28 28 28 25 24 24 22 Most Carried 28 | 4 20 28 28 28 28 28 28 28 28 28 28 28 28 28 28 28 26 24 24 Average Carried 26 | 3 15 24 27 27 27 27 27 27 27 26 28 27 28 26 26 25 22 23 20 Final Capacity 28 | 8 20 28 28 28 28 28 28 28 28 28 28 28 28 28 28 26 24 24 16 Final Carried 28 | 4 20 28 28 28 28 28 27 28 28 28 28 28 28 25 27 26 24 24 6 Class Distribution -------------------- 79% | Hauler-Mutant 10% | Hauler-Assassin 7% | Hauler-Skirmisher Dominant Class ---------------- Hauler-Mutant | -10/Materials Hauler-Mutant | -9/Materials Hauler-Mutant | -9/Storage Hauler-Mutant | -8/Materials Hauler-Mutant | -7/Factory Hauler-Mutant | -7/Lower Caves Hauler-Mutant | -7/Lower Caves Hauler-Mutant | -7/Zion Hauler-Mutant | -6/Proximity Caves Hauler-Mutant | -6/Factory Hauler-Assassin | -6/Lower Caves Hauler-Assassin | -6/Lower Caves Hauler-Assassin | -6/Data Miner Hauler-Mutant | -5/Proximity Caves Hauler-Mutant | -5/Factory Hauler-Mutant | -5/Extension Hauler-Mutant | -5/Cetus Hauler-Mutant | -5/Archives Hauler-Skirmisher | -5/Hub_04(d) Resources | -11 -10 -9 -9 -8 -7 -7 -7 -7 -6 -6 -6 -6 -6 -5 -5 -5 -5 -5 -5 ----------- Run | Scr Mat Mat Sto Mat Fac Low Low Zio Pro Fac Low Low Dat Pro Fac Ext Cet Arc Hub Matter Collected 8622 | 279 363 704 852 497 744 222 189 115 228 1037 59 80 . 373 1001 377 931 352 219 Remotely . | . . . . . . . . . . . . . . . . . . . . Salvage Created 15425 | 196 727 1536 2051 1049 1299 100 294 . 133 2150 156 52 . 414 1282 671 1703 702 910 Parts 837 | 14 46 107 144 59 69 9 15 . 11 86 . 3 . 24 51 26 89 30 54 Haulers Intercepted 23 | . 1 4 6 4 2 . . . . 3 . . . . 1 . . . 2 Recyclers Shooed 15 | . 3 3 . . 4 . . . . 3 . . . . 2 . . . . Parts Field Recycled . | . . . . . . . . . . . . . . . . . . . . Retrieved Matter . | . . . . . . . . . . . . . . . . . . . . Parts Self-Destructed 79 | . . . . . . 7 10 4 39 . . 3 . 16 . . . . . Prevented 9 | . . . . . . . 9 . . . . . . . . . . . . Kills | -11 -10 -9 -9 -8 -7 -7 -7 -7 -6 -6 -6 -6 -6 -5 -5 -5 -5 -5 -5 ------- Run | Scr Mat Mat Sto Mat Fac Low Low Zio Pro Fac Low Low Dat Pro Fac Ext Cet Arc Hub Combat Hostiles Destroyed 224 | . 13 20 39 13 20 8 10 . 7 26 . 2 . 12 15 4 22 4 9 Melee 10 | . . . . . . . . . . . . . . 3 7 . . . . Guns 113 | . 13 15 28 10 17 . . . . 10 . . . . . 1 11 2 6 Cannons 67 | . . 5 11 3 2 3 4 . 5 16 . 1 . 1 7 3 3 . 3 AOE 27 | . . . . . 1 5 6 . 2 . . 1 . 8 . . 4 . . Classes Destroyed 17 | 2 7 2 1 . 2 1 . . . . . . . 2 . . . . . Worker 14 | . 3 6 1 1 . . . . . . . . . . . . . . 3 Builder 13 | . 1 2 1 . 1 . . . . 1 . . . . 1 . . . 6 Tunneler 8 | 5 1 1 . . . . . . . . . . . . . 1 . . . Hauler 23 | . 1 4 6 4 2 . . . . 3 . . . . 1 . . . 2 Recycler 18 | 1 1 4 . 1 3 . . . . 3 . . . . 3 2 . . . Operator 20 | . 3 2 1 3 2 . . . . . . . . . . . . 9 . Watcher 17 | . 2 3 2 2 . . . . . 2 . . . . 1 3 2 . . Swarmer 43 | . 3 4 3 . . 4 6 . 6 7 . . . 5 4 . . . 1 Grunt 101 | . 10 9 23 12 12 2 3 . 1 9 . . . . 5 4 9 . 2 Brawler 3 | . . 2 1 . . . . . . . . . . . . . . . . Duelist 1 | . . . . . . 1 . . . . . . . . . . . . . Protector 1 | . . . 1 . . . . . . . . . . . . . . . . Sentry 34 | . . 5 11 1 4 . 1 . . 6 . . . . 1 . . 4 1 Hunter 19 | . . . . . 1 . . . . 2 . 2 . 5 1 . 3 . 5 Programmer 13 | . . . . . 3 1 . . . 2 . . . 1 4 . 2 . . Behemoth 1 | . . . . . . . . . . . . . . 1 . . . . . Cetus Guard 8 | . . . . . . . . . . . . . . . . . 8 . . Packrat 1 | . . . . . . . . . . . 1 . . . . . . . . Samaritan 1 | . . . . . . . . . . . . . . 1 . . . . . Savage 1 | . . . . . . . . . . . . . . . . . 1 . . Best Kill Streak 15 | 6 4 7 8 4 4 4 4 . 3 10 . 1 . 5 5 3 7 3 15 Combat Bots Only 7 | . 3 5 6 3 4 4 4 . 3 5 . 1 . 5 5 2 7 2 4 Max Kills in Single Turn 3 | 1 1 2 2 1 1 2 3 . 2 2 1 1 . 2 1 1 2 2 2 Gunslinging . | . . . . . . . . . . . . . . . . . . . . Exploded 3 | . . . . . 1 2 3 . 2 . . 1 . 2 . . 2 . . Melee 1 | . . . . . . . . . . . . . . 1 1 . . . . Uniques/NPCs Destroyed . | . . . . . . . . . . . . . . . . . . . . Combat | -11 -10 -9 -9 -8 -7 -7 -7 -7 -6 -6 -6 -6 -6 -5 -5 -5 -5 -5 -5 -------- Run | Scr Mat Mat Sto Mat Fac Low Low Zio Pro Fac Low Low Dat Pro Fac Ext Cet Arc Hub Damage Taken 24563 | . 681 622 1623 868 1639 89 1050 . 481 3749 . 636 . 1818 2831 581 2279 511 5105 Core 2623 | . 92 118 196 95 297 . 171 . 13 402 . 23 . 199 278 22 135 86 496 Absorbed by Shields . | . . . . . . . . . . . . . . . . . . . . Reduced by Siege Mode 142 | . . . . . . . . . . . . . . . . 21 25 15 81 Core Remaining (%) 53 | 100 63 . 21 82 . . . . 31 . . . . 26 . . . . . Volleys Fired 1119 | 17 102 104 133 67 111 48 23 . 37 159 . 15 . 22 74 36 76 51 44 Largest 2 | 2 2 2 2 2 2 2 2 . 2 2 . 2 . 2 2 2 2 2 2 Hottest 180 | 60 60 91 113 91 151 138 138 . 138 180 . 98 . 113 173 140 110 110 125 Shots Fired 1954 | 31 195 208 242 134 192 55 38 . 51 263 . 21 . 36 111 63 134 101 79 Gun 1225 | 31 195 170 186 121 127 . . . . 93 . 11 . 10 . 10 111 91 69 Cannon 683 | . . 38 53 13 61 50 32 . 50 170 . 6 . 17 111 53 9 10 10 Launcher 43 | . . . . . 4 5 6 . 1 . . 4 . 9 . . 14 . . Special 3 | . . . 3 . . . . . . . . . . . . . . . . Kinetic 1220 | 17 139 163 167 104 90 7 15 . 14 103 . 11 . 15 65 31 111 91 77 Thermal 633 | 14 56 45 75 30 95 43 17 . 36 153 . 6 . 12 36 13 . . 2 Explosive 24 | . . . . . 4 5 1 . 1 . . 4 . 9 . . . . . Electromagnetic 77 | . . . . . 3 . 5 . . 7 . . . . 10 19 23 10 . Robot Hit Streak 33 | 9 17 9 31 33 14 11 17 . 25 19 . 13 . 23 12 9 14 28 24 Robot Miss Streak 5 | 1 5 3 4 3 3 1 1 . 3 5 . 2 . 1 3 2 2 3 3 Penetration Max 1 | . . . . . . . . . . 1 . . . . 1 1 1 1 1 Secondary Targets 12 | . . 4 4 . 1 . . . . . . . . . . . 1 . 2 Max Gunslinging Chain 1 | . . 1 1 . 1 . . . . . . . . . . . 1 . 1 Shots Hit Robots 1298 | 24 131 134 153 103 125 13 20 . 17 175 2 16 . 40 69 44 88 75 69 Core Hits 616 | 9 47 55 65 45 56 16 16 . 8 73 1 5 . 24 37 21 66 35 37 Critical Hits 111 | . 3 2 4 3 1 . 1 . 1 19 . 2 . 4 8 5 27 14 17 Critical Kills 44 | . 1 . 3 3 1 . . . 1 8 . . . . 1 3 12 5 6 Critical Parts Destroyed 57 | . 2 2 1 . . . 1 . . 10 . 2 . 2 7 2 11 8 9 Melee Attacks 63 | . . . . . . . . . . 4 3 4 . 17 30 . . . 5 Impact . | . . . . . . . . . . . . . . . . . . . . Slashing 63 | . . . . . . . . . . 4 3 4 . 17 30 . . . 5 Piercing . | . . . . . . . . . . . . . . . . . . . . Sneak Attacks 2 | . . . . . . . . . . . 1 . . 1 . . . . . Combat Hostiles . | . . . . . . . . . . . . . . . . . . . . Follow-up Attacks . | . . . . . . . . . . . . . . . . . . . . Damage Inflicted 31036 | 201 1388 2178 2831 1730 2714 1153 964 . 685 3991 213 709 . 2079 2595 1228 2071 1965 2341 Guns 13814 | 201 1388 1635 2075 1524 1820 . . . . 839 . 38 . 63 . 53 590 1702 1886 Cannons 10564 | . . 543 753 206 605 319 489 . 465 3146 . 106 . 362 1530 1175 276 263 326 Explosions 4779 | . . . . . 289 834 475 . 220 . . 565 . 1066 125 . 1205 . . Melee 1841 | . . . . . . . . . . . 213 . . 588 920 . . . 120 Ramming 38 | . . . 3 . . . . . . 6 . . . . 20 . . . 9 Kinetic 15223 | 125 960 1583 2003 1296 1251 208 289 . 277 1121 . 38 . 109 1005 528 590 1702 2138 Thermal 8054 | 76 428 595 825 434 1152 111 200 . 188 2685 . 106 . 316 223 246 395 . 74 Explosive 3228 | . . . . . 289 834 254 . 220 . . 565 . 1066 . . . . . Electromagnetic 2652 | . . . . . 22 . 221 . . 179 . . . . 427 454 1086 263 . Impact . | . . . . . . . . . . . . . . . . . . . . Slashing 1841 | . . . . . . . . . . . 213 . . 588 920 . . . 120 Piercing . | . . . . . . . . . . . . . . . . . . . . Highest Corruption 9 | . 1 . . . 4 2 . . 1 7 5 . . 2 9 2 1 1 . Average Corruption 3 | . 1 . . . 3 1 . . 1 4 2 . . 1 6 1 1 1 . Corruption Purged 23 | . . . . . 2 2 . . 1 2 5 . . 1 7 2 . 1 . Effects 164 | . 1 . . . 30 3 . . 2 56 7 . . 8 45 7 4 1 . Message Errors 40 | . . . . . 8 . . . 1 9 3 . . 4 12 2 . 1 . Matter Fused 23 | . . . . . 5 . . . . 7 2 . . . 9 . . . . Heat Flow Errors 14 | . . . . . 3 . . . . 4 2 . . 1 4 . . . . Energy Discharges 16 | . . . . . 3 3 . . . 3 . . . . 2 4 1 . . Parts Rejected 1 | . . . . . . . . . . . . . . . 1 . . . . Data Loss (minor) 21 | . . . . . 5 . . . 1 6 . . . 3 4 1 1 . . Data Loss (major) 7 | . . . . . . . . . . 1 . . . . 6 . . . . Misfires 2 | . . . . . . . . . . 2 . . . . . . . . . Targeting Errors 31 | . . . . . 4 . . . . 20 . . . . 7 . . . . Weapon Failures 9 | . 1 . . . 2 . . . . 4 . . . . . . 2 . . Overload Shots . | . . . . . . . . . . . . . . . . . . . . Overflow Damage 567 | . . 7 12 . 39 55 53 . 18 34 120 38 . 128 52 8 3 . . Projectiles 208 | . . 7 12 . 39 37 . . 14 34 . 4 . 2 51 8 . . . Explosions 224 | . . . . . . 18 53 . 4 . . 34 . 112 . . 3 . . Melee 135 | . . . . . . . . . . . 120 . . 14 1 . . . . Knockbacks 35 | . . . . . 2 . 2 . 3 9 . . . . 16 1 . . 2 Impact 1 | . . . . . . . . . . . . . . . 1 . . . . Kinetic 30 | . . . . . 1 . 2 . 3 7 . . . . 14 1 . . 2 Secondary 4 | . . . . . 1 . . . . 2 . . . . 1 . . . . Self-Inflicted Damage 157 | . . . . . 41 . 4 . . 3 . . . 54 . . 55 . . Shots 5 | . . . . . 1 . 1 . . . . . . 2 . . 1 . . Rammed 7 | . . . 1 . . . . . . 1 . . . . 4 . . . 1 Targets Rammed 7 | . . . 1 . . . . . . 1 . . . . 4 . . . 1 Kicked . | . . . . . . . . . . . . . . . . . . . . Crushed . | . . . . . . . . . . . . . . . . . . . . Highest Temperature 515 | 60 76 246 231 198 322 376 51 . 288 515 255 155 . 213 302 168 314 371 384 Average Temperature 87 | 24 23 76 74 48 87 122 14 . 89 135 133 48 . 54 74 54 109 94 101 Received Heat Transfer 4602 | . 333 186 711 495 468 . 387 . 33 792 . . . 60 405 102 270 45 315 Effects 17 | . . 1 . . 2 . . . . 7 . . . 1 . . 1 1 4 Shutdowns 2 | . . . . . 1 . . . . . . . . . . . . . 1 Energy Bleed 6 | . . 1 . . 1 . . . . 2 . . . 1 . . 1 . . Interference 4 | . . . . . . . . . . 2 . . . . . . . . 2 Matter Decay 1 | . . . . . . . . . . . . . . . . . . 1 . Damage (minor) 1 | . . . . . . . . . . . . . . . . . . . 1 Damage (major) 3 | . . . . . . . . . . 3 . . . . . . . . . Siege Activations 6 | . . . . . . . . . . . . . . . . 1 2 1 2 Total Turns 114 | . . . . . . . . . . . . . . . . 15 32 16 51 Longest Duration 47 | . . . . . . . . . . . . . . . . 15 23 16 47 Robots Corrupted 7 | . . . . . . . . . . . . . . . 1 . 4 2 . Combat Hostiles 7 | . . . . . . . . . . . . . . . 1 . 4 2 . Parts Fried 15 | . . . . . . . 1 . . 2 . . . . 4 . 7 1 . Impact Corruptions 1 | . . . . . . . . . . . . . . . 1 . . . . Robots Melted . | . . . . . . . . . . . . . . . . . . . . Combat Hostiles . | . . . . . . . . . . . . . . . . . . . . Parts Melted 21 | . 2 1 2 . 3 . . . 1 9 . . . . 3 . . . . Heat Transferred 11862 | 175 950 1073 1333 814 1924 148 259 . 222 3554 . 148 . 407 309 296 200 . 50 Parts Sabotaged . | . . . . . . . . . . . . . . . . . . . . Parts Stolen . | . . . . . . . . . . . . . . . . . . . . Parts Stripped . | . . . . . . . . . . . . . . . . . . . . Power Chain Reactions 2 | . . . . . . . . . . . . . . . . . 2 . . Missiles Intercepted . | . . . . . . . . . . . . . . . . . . . . Alert | -11 -10 -9 -9 -8 -7 -7 -7 -7 -6 -6 -6 -6 -6 -5 -5 -5 -5 -5 -5 ------- Run | Scr Mat Mat Sto Mat Fac Low Low Zio Pro Fac Low Low Dat Pro Fac Ext Cet Arc Hub Peak Influence 829 | 30 224 424 805 682 474 . . . . 829 . . . . 269 181 332 344 188 Average Influence 223 | 11 96 247 394 506 306 . . . . 227 . . . . 100 80 182 182 71 Maximum Alert Level 3 | . 1 2 3 2 2 . . . . 3 . . . . 1 . 1 1 . Low Security (%) 52 | 100 85 26 3 . 22 . . . . 52 . . . . 86 100 65 67 100 Level 1 32 | . 14 64 45 21 66 . . . . 35 . . . . 13 . 34 32 . Level 2 13 | . . 9 46 78 11 . . . . 2 . . . . . . . . . Level 3 2 | . . . 4 . . . . . . 9 . . . . . . . . . Level 4 . | . . . . . . . . . . . . . . . . . . . . Level 5 . | . . . . . . . . . . . . . . . . . . . . High Security . | . . . . . . . . . . . . . . . . . . . . Max Security . | . . . . . . . . . . . . . . . . . . . . Squads Dispatched 46 | . 6 3 9 5 10 . 1 . . 5 . . . . 4 . . . 3 Investigation 12 | . 2 . 4 . 2 . 1 . . 1 . . . . 2 . . . . Extermination 6 | . . . . . 2 . . . . 2 . . . . 2 . . . . Reinforcement 21 | . 4 3 3 3 3 . . . . 2 . . . . . . . . 3 Assault 3 | . . . 2 1 . . . . . . . . . . . . . . . Garrison 4 | . . . . 1 3 . . . . . . . . . . . . . . Intercept . | . . . . . . . . . . . . . . . . . . . . Construction Impeded 2 | . . . . . 1 . . . . 1 . . . . . . . . . Haulers Reinforced 1 | . . . . . . . . . . . . . . . . . . . 1 Stealth | -11 -10 -9 -9 -8 -7 -7 -7 -7 -6 -6 -6 -6 -6 -5 -5 -5 -5 -5 -5 --------- Run | Scr Mat Mat Sto Mat Fac Low Low Zio Pro Fac Low Low Dat Pro Fac Ext Cet Arc Hub Distress Signals 18 | . . 4 1 4 1 . . . . 3 . . . . 2 1 . . 2 Communications Jammed . | . . . . . . . . . . . . . . . . . . . . Distress Signals . | . . . . . . . . . . . . . . . . . . . . Times Spotted 397 | . 40 33 59 25 31 11 10 . 14 42 . 2 . 12 34 18 26 15 25 Peak Tracking Total 11 | . 6 6 6 5 4 4 7 . 4 8 . 2 . 5 7 4 5 1 11 Tactical Retreats 30 | . 2 1 1 2 5 3 . . 1 7 . . . . 4 1 1 . 2 Traps | -11 -10 -9 -9 -8 -7 -7 -7 -7 -6 -6 -6 -6 -6 -5 -5 -5 -5 -5 -5 ------- Run | Scr Mat Mat Sto Mat Fac Low Low Zio Pro Fac Low Low Dat Pro Fac Ext Cet Arc Hub Traps Triggered 16 | . 5 1 2 2 2 . . . . 1 . . . . 1 2 . . . Indirectly . | . . . . . . . . . . . . . . . . . . . . Trap Hack Attempts . | . . . . . . . . . . . . . . . . . . . . Triggered . | . . . . . . . . . . . . . . . . . . . . Disarmed . | . . . . . . . . . . . . . . . . . . . . Reprogrammed . | . . . . . . . . . . . . . . . . . . . . Reused . | . . . . . . . . . . . . . . . . . . . . Traps Extracted . | . . . . . . . . . . . . . . . . . . . . Installed . | . . . . . . . . . . . . . . . . . . . . Triggered 1 | . . . . . . . . . 1 . . . . . . . . . . Machines | -11 -10 -9 -9 -8 -7 -7 -7 -7 -6 -6 -6 -6 -6 -5 -5 -5 -5 -5 -5 ---------- Run | Scr Mat Mat Sto Mat Fac Low Low Zio Pro Fac Low Low Dat Pro Fac Ext Cet Arc Hub Machines Disabled 19 | . . 2 2 1 2 . 2 . . . . . . . 5 . . 5 . Max in Single Turn 2 | . . 1 1 1 1 . 1 . . . . . . . 1 . . 2 . Garrison Access 4 | . . . 1 1 1 . . . . 1 . . . . . . . . . Energy Cycler 1 | . . . . . . . . . . . . . . . . 1 . . . Machines Sabotaged . | . . . . . . . . . . . . . . . . . . . . Garrisons Compromised . | . . . . . . . . . . . . . . . . . . . . Overloaded Fab Kills . | . . . . . . . . . . . . . . . . . . . . Fab Network Shutdowns 1 | . . . . . . . . . . 1 . . . . . . . . . Hacking | -11 -10 -9 -9 -8 -7 -7 -7 -7 -6 -6 -6 -6 -6 -5 -5 -5 -5 -5 -5 --------- Run | Scr Mat Mat Sto Mat Fac Low Low Zio Pro Fac Low Low Dat Pro Fac Ext Cet Arc Hub Machines Accessed 70 | . 6 4 15 1 8 1 1 . . 9 1 . 4 . 6 9 4 1 . Terminals 48 | . 4 3 12 1 5 1 1 . . 3 . . . . 5 9 4 . . Fabricators 2 | . . . . . . . . . . 2 . . . . . . . . . Repair Stations 1 | . . . . . 1 . . . . . . . . . . . . . . Recycling Units 7 | . 2 . 2 . 1 . . . . 2 . . . . . . . . . Scanalyzers 2 | . . 1 . . . . . . . 1 . . . . . . . . . Garrison Access 4 | . . . 1 . 1 . . . . 1 . . . . 1 . . . . Total Hacks 209 | . 19 9 32 3 22 5 3 . . 27 1 . 26 . 13 32 14 3 . Successful 126 | . 13 6 15 2 13 2 3 . . 14 1 . 26 . 3 19 6 3 . Failed 83 | . 6 3 17 1 9 3 . . . 13 . . . . 10 13 8 . . Catastrophic 19 | . . 2 5 1 5 2 . . . . . . . . 2 2 . . . Database Lockouts . | . . . . . . . . . . . . . . . . . . . . Manual 106 | . 15 4 15 3 10 4 . 1 . 9 . . . . 7 25 13 . . Terminals 140 | . 13 7 26 3 17 5 3 . . 10 . . . . 10 32 14 . . Fabricators 9 | . . . . . . . . . . 9 . . . . . . . . . Repair Stations 2 | . . . . . 2 . . . . . . . . . . . . . . Recycling Units 17 | . 6 . 5 . 2 . . . . 4 . . . . . . . . . Scanalyzers 4 | . . 2 . . . . . . . 2 . . . . . . . . . Garrison Access 7 | . . . 1 . 1 . . . . 2 . . . . 3 . . . . Terminal Hacks 80 | . 5 2 8 2 6 2 3 . . 3 1 . 26 . 3 14 2 3 . Record 18 | . . . . . . 1 3 . . . . . 11 . . . . 3 . Part Schematic 12 | . . . . . . 1 . . . . . . 8 . . 3 . . . Robot Schematic 5 | . . . . . . . . . . . . . 4 . . 1 . . . Robot Analysis 3 | . 3 . . . . . . . . . . . . . . . . . . Prototype ID Bank 8 | . . . . . 1 . . . . 2 . . 3 . 1 1 . . . Open Door 6 | . . . 4 . . . . . . . 1 . . . . . 1 . . Branch Access Points 2 | . . 1 . . 1 . . . . . . . . . . . . . . Terminal Index 2 | . 1 . 1 . . . . . . . . . . . . . . . . Fabricator Index 1 | . . . . . . . . . . 1 . . . . . . . . . Recycling Unit Index 1 | . . . . . . . . . . . . . . . . 1 . . . Alert Level 4 | . . . . . 1 . . . . . . . . . . 3 . . . Unreport Threat 6 | . 1 . 1 2 . . . . . . . . . . 1 1 . . . Locate Traps 4 | . . 1 2 . . . . . . . . . . . . 1 . . . Hauler Manifests 2 | . . . . . . . . . . . . . . . 1 1 . . . Zone Layout 6 | . . . . . 3 . . . . . . . . . . 2 1 . . Fabricator Hacks 3 | . . . . . . . . . . 3 . . . . . . . . . Load Schematic 2 | . . . . . . . . . . 2 . . . . . . . . . Build 1 | . . . . . . . . . . 1 . . . . . . . . . Repair Station Hacks 2 | . . . . . 2 . . . . . . . . . . . . . . Scan Component 1 | . . . . . 1 . . . . . . . . . . . . . . Repair 1 | . . . . . 1 . . . . . . . . . . . . . . Recycling Unit Hacks 6 | . 3 . 1 . 1 . . . . 1 . . . . . . . . . Retrieve Matter 1 | . 1 . . . . . . . . . . . . . . . . . . Retrieve Components 5 | . 2 . 1 . 1 . . . . 1 . . . . . . . . . Scanalyzer 3 | . . 2 . . . . . . . 1 . . . . . . . . . Insert Component 2 | . . 1 . . . . . . . 1 . . . . . . . . . Analyze 1 | . . 1 . . . . . . . . . . . . . . . . . Garrison Access Hacks 3 | . . . 1 . 1 . . . . 1 . . . . . . . . . Seal Access 3 | . . . 1 . 1 . . . . 1 . . . . . . . . . Unauthorized Hacks 29 | . 5 2 5 . 3 . . . . 5 . . . . . 5 4 . . Terminals 23 | . 3 2 3 . 2 . . . . 4 . . . . . 5 4 . . Track 6 | . . 1 1 . 1 . . . . 1 . . . . . 1 1 . . Assimilate 1 | . . . . . . . . . . 1 . . . . . . . . . Botnet 13 | . 2 1 2 . 1 . . . . 1 . . . . . 4 2 . . Disrupt 2 | . 1 . . . . . . . . . . . . . . . 1 . . Operators 1 | . . . . . . . . . . 1 . . . . . . . . . Fabricators 1 | . . . . . . . . . . 1 . . . . . . . . . Haulers 1 | . . . . . . . . . . 1 . . . . . . . . . Repair Stations . | . . . . . . . . . . . . . . . . . . . . Recycling Units 5 | . 2 . 2 . 1 . . . . . . . . . . . . . . Tunnel 5 | . 2 . 2 . 1 . . . . . . . . . . . . . . Scanalyzers . | . . . . . . . . . . . . . . . . . . . . Garrison Access . | . . . . . . . . . . . . . . . . . . . . Data Cores Recovered 1 | . . . . . 1 . . . . . . . . . . . . . . Used 1 | . . . . . 1 . . . . . . . . . . . . . . Hacking Detections 59 | . 5 3 14 1 6 1 1 . . 9 . . . . 6 9 4 . . Full Trace Events 6 | . . . 1 . 1 . 1 . . 1 . . . . 2 . . . . Feedback Events . | . . . . . . . . . . . . . . . . . . . . Feedback Blocked . | . . . . . . . . . . . . . . . . . . . . Robot Schematics Acquired 5 | . . . . . . . . . . . . . 4 . . 1 . . . Robots Built . | . . . . . . . . . . . . . . . . . . . . Matter . | . . . . . . . . . . . . . . . . . . . . Time . | . . . . . . . . . . . . . . . . . . . . Total Robot Build Rating . | . . . . . . . . . . . . . . . . . . . . Part Schematics Acquired 13 | . . 1 . . . 1 . . . . . . 8 . . 3 . . . Parts Built 2 | . . . . . . . . . . 2 . . . . . . . . . Matter 146 | . . . . . . . . . . 146 . . . . . . . . . Time 73 | . . . . . . . . . . 73 . . . . . . . . . Total Part Build Rating 6 | . . . . . . . . . . 6 . . . . . . . . . Parts Repaired 1 | . . . . . 1 . . . . . . . . . . . . . . Time 40 | . . . . . 40 . . . . . . . . . . . . . . Parts Recycled . | . . . . . . . . . . . . . . . . . . . . Recycled Matter . | . . . . . . . . . . . . . . . . . . . . Retrieved Matter 216 | . 216 . . . . . . . . . . . . . . . . . . Retrieved Components 22 | . 9 . 3 . 10 . . . . . . . . . . . . . . Parts Scanalyzed 2 | . . 1 . . . . . . . 1 . . . . . . . . . Part Schematics Acquired 1 | . . 1 . . . . . . . . . . . . . . . . . Parts Damaged . | . . . . . . . . . . . . . . . . . . . . Bothacking | -11 -10 -9 -9 -8 -7 -7 -7 -7 -6 -6 -6 -6 -6 -5 -5 -5 -5 -5 -5 ------------ Run | Scr Mat Mat Sto Mat Fac Low Low Zio Pro Fac Low Low Dat Pro Fac Ext Cet Arc Hub Used RIF Installer . | . . . . . . . . . . . . . . . . . . . . Robots Hacked . | . . . . . . . . . . . . . . . . . . . . Non-combat . | . . . . . . . . . . . . . . . . . . . . Combat . | . . . . . . . . . . . . . . . . . . . . Robot Hacks Applied . | . . . . . . . . . . . . . . . . . . . . Relay Couplers Released 5 | . . . . 3 . . . . . 2 . . . . . . . . . Machine Destruction 5 | . . . . 3 . . . . . 2 . . . . . . . . . Robots Rewired 9 | . . . . . . . . . . . . . . . . 9 . . . Allies Hacked . | . . . . . . . . . . . . . . . . . . . . Hacks Repelled . | . . . . . . . . . . . . . . . . . . . . Allies | -11 -10 -9 -9 -8 -7 -7 -7 -7 -6 -6 -6 -6 -6 -5 -5 -5 -5 -5 -5 -------- Run | Scr Mat Mat Sto Mat Fac Low Low Zio Pro Fac Low Low Dat Pro Fac Ext Cet Arc Hub Total Allies 28 | . . . 12 . . . . 2 . 1 . . . 1 . 12 . . . Largest Group 10 | . . . 10 . . . . 2 2 1 . . . 1 . 9 3 . . Highest-Rated Group 245 | . . . 88 . . . . 188 188 10 . . . 94 . 245 82 . . Highest-Rated Ally 94 | . . . 31 . . . . 94 94 10 . . . 94 . 37 37 . . Total Orders 7 | . . . 3 . . . . . . 4 . . . . . . . . . STAY 3 | . . . 2 . . . . . . 1 . . . . . . . . . GOTO 1 | . . . . . . . . . . 1 . . . . . . . . . FOLLOW 3 | . . . 1 . . . . . . 2 . . . . . . . . . Ally Attacks 216 | . . . 77 . . . . . 48 . . . . 6 . 85 . . . Total Damage 4356 | . . . 830 . . . . . 1628 . . . . 300 . 1598 . . . Kills 36 | . . . 11 . . . . . 13 . . . . . . 12 . . . Allies Corrupted . | . . . . . . . . . . . . . . . . . . . . Allies Melted . | . . . . . . . . . . . . . . . . . . . . Intel | -11 -10 -9 -9 -8 -7 -7 -7 -7 -6 -6 -6 -6 -6 -5 -5 -5 -5 -5 -5 ------- Run | Scr Mat Mat Sto Mat Fac Low Low Zio Pro Fac Low Low Dat Pro Fac Ext Cet Arc Hub Robot Analysis Total 3 | . 3 . . . . . . . . . . . . . . . . . . Derelict Logs Recovered 12 | . . . . . . 3 1 2 1 . 3 1 . 1 . . . . . Drone Launches . | . . . . . . . . . . . . . . . . . . . . Drone Recoveries . | . . . . . . . . . . . . . . . . . . . . Exploration | -11 -10 -9 -9 -8 -7 -7 -7 -7 -6 -6 -6 -6 -6 -5 -5 -5 -5 -5 -5 ------------- Run | Scr Mat Mat Sto Mat Fac Low Low Zio Pro Fac Low Low Dat Pro Fac Ext Cet Arc Hub Turns Passed 28533 | 116 1283 1313 2294 706 1920 2672 1341 1841 2673 2206 1554 712 697 1571 1839 1670 871 783 471 Spaces Moved 11446 | 60 601 641 917 224 854 986 538 945 1082 976 426 317 174 566 776 774 304 139 146 Core 2 | 2 . . . . . . . . . . . . . . . . . . . Treads 8208 | 7 11 . 853 224 270 986 538 945 1082 292 426 317 174 247 473 774 304 139 146 Legs . | . . . . . . . . . . . . . . . . . . . . Wheels 3236 | 51 590 641 64 . 584 . . . . 684 . . . 319 303 . . . . Hover . | . . . . . . . . . . . . . . . . . . . . Flight . | . . . . . . . . . . . . . . . . . . . . Fastest Speed 50 | 50 90 130 130 200 140 200 192 192 212 130 205 200 200 140 140 180 180 180 160 Average Speed 181 | 95 148 137 195 200 159 200 199 193 215 160 205 202 200 166 164 180 180 180 178 Slowest Speed 240 | 160 220 180 200 200 240 200 200 212 225 240 205 205 200 240 180 180 180 180 180 Overloaded Moves . | . . . . . . . . . . . . . . . . . . . . Propulsion Burnouts . | . . . . . . . . . . . . . . . . . . . . Robots Hopped . | . . . . . . . . . . . . . . . . . . . . Cave-ins Triggered . | . . . . . . . . . . . . . . . . . . . . Exploration Rate (%) 56 | 4 82 43 95 22 18 80 66 85 96 23 55 52 74 66 19 83 78 75 12 Regions Visited 19 Branch Regions 13 Pre-discovered Areas 9 | . 2 . 2 . 1 . . 2 . . 1 . 1 . . . . . . Known Exits Taken 9 | . . 1 . . 1 . . . . 1 1 . . 1 1 1 1 1 . Unknown Exits Taken 10 | 1 1 . 1 1 . 1 1 1 1 . . 1 1 . . . . . . Scrap Searched 13 | . . . . . . 1 1 3 1 . 4 2 . 1 . . . . . Spaces Dug 107 | . . . 13 . 10 15 3 . 8 13 1 4 . 30 8 . . . 2 Terrain Destroyed 475 | . . . 18 . 38 97 25 . 31 34 1 32 . 112 24 4 21 24 14 Melee 12 | . . . . . . . . . . 4 1 4 . 2 . . . . 1 Projectile 184 | . . . 18 . 15 27 8 . 18 30 . . . 3 24 4 . 24 13 AOE 279 | . . . . . 23 70 17 . 13 . . 28 . 107 . . 21 . . Actions | -11 -10 -9 -9 -8 -7 -7 -7 -7 -6 -6 -6 -6 -6 -5 -5 -5 -5 -5 -5 --------- Run | Scr Mat Mat Sto Mat Fac Low Low Zio Pro Fac Low Low Dat Pro Fac Ext Cet Arc Hub Total 17299 | 87 813 872 1181 351 1256 1625 765 963 1373 1398 1102 362 523 1129 1177 996 493 568 265 Wait 3747 | . 55 58 42 20 188 577 186 3 234 157 668 20 349 491 215 27 45 366 46 Move 11427 | 59 600 640 916 223 853 985 537 944 1081 975 425 316 173 565 775 773 303 138 146 Hop . | . . . . . . . . . . . . . . . . . . . . Pick Up 215 | 4 28 25 19 8 30 1 4 4 2 27 1 1 . 5 18 15 21 2 . Fast Attach 92 | 7 7 11 6 7 11 . 1 4 3 9 . . . . 9 4 7 . 6 Attach 97 | . 9 6 8 5 9 . 3 . 1 15 . 2 . 6 11 4 9 . 9 Detach 10 | . . 1 2 . 1 . . . 1 2 . . . . 1 . 1 . 1 Swap 202 | . 3 5 23 8 16 13 8 1 9 23 4 4 1 21 22 14 12 9 6 Drop 204 | . 9 22 31 13 37 1 3 7 5 24 1 . . 2 16 11 19 2 1 Fire 1119 | 17 102 104 133 67 111 48 23 . 37 159 . 15 . 22 74 36 76 51 44 Melee 63 | . . . . . . . . . . 4 3 4 . 17 30 . . . 5 Ram 1 | . . . . . . . . . . 1 . . . . . . . . . Kick . | . . . . . . . . . . . . . . . . . . . . Crush 6 | . . . 1 . . . . . . . . . . . 4 . . . 1 Escape Stasis 8 | . . . . . . . . . . 2 . . . . 2 4 . . . Rewire 108 | . . . . . . . . . . . . . . . . 108 . . . Trap . | . . . . . . . . . . . . . . . . . . . . Miscellaneous . | . . . . . . . . . . . . . . . . . . . . Route ------- -11/Scrapyard -10/Materials (discovered 3 exits: *Mat x2 / [*Min]) -9/Materials (discovered 3 exits: *Mat / *Min / *Sto) -9/Storage -8/Materials -7/Factory (discovered 2 exits: *Low x2) -7/Lower Caves -7/Lower Caves (discovered 2 exits: *Fac / *Zio) -7/Zion -6/Proximity Caves -6/Factory (discovered 4 exits: Fac x2 / *Low x2) -6/Lower Caves -6/Lower Caves -6/Data Miner -5/Proximity Caves -5/Factory (discovered 3 exits: Upp x2 / *Ext) -5/Extension (discovered 3 exits: [*Fac x2] / *Cet) -5/Cetus (discovered 2 exits: [*Fac] / *Arc) -5/Archives (discovered 3 exits: [Fac] / *Hub x2) -5/Hub_04(d) (discovered 2 exits: [Fac x2]) History --------- Turn | Location | Event 13 | -11/Scrapyard | Discovered new exit (range 15) 117 | -11/Scrapyard | Entered Materials 329 | -10/Materials | Discovered new exit (range 16) 428 | -10/Materials | Build established: Hauler-Mutant 768 | -10/Materials | Lost 3 parts (1n2w) 897 | -10/Materials | Discovered new exit (range 9) 1346 | -10/Materials | Discovered new exit (range 16) 1400 | -10/Materials | Entered another Materials area 1400 | -9/Materials | Evolved 2 slots: Utility x2 1781 | -9/Materials | Discovered new exit (range 9) 1804 | -9/Materials | Identified exit to Mines 1804 | -9/Materials | Identified exit to Storage 2210 | -9/Materials | Discovered new exit (range 14) 2713 | -9/Materials | Entered Storage 3539 | -9/Storage | Assisted by bots powering up and referring to "LRC-V3" 3846 | -9/Storage | Build established: Commander-Mutant 4127 | -9/Storage | Found Prototype Protection 4127 | -9/Storage | Identified Lgt. Regenerative Plating 4131 | -9/Storage | Found Lgt. Regenerative Plating 4134 | -9/Storage | Found Lgt. Regenerative Plating 4137 | -9/Storage | Found Lgt. Regenerative Plating 4140 | -9/Storage | Found Lgt. Regenerative Plating 4143 | -9/Storage | Found Lgt. Regenerative Plating 4239 | -9/Storage | Build established: Hauler-Mutant 4674 | -9/Storage | Core integrity fell below 50% 4870 | -9/Storage | Discovered new exit (range 16) 4878 | -9/Storage | Met a pair of Derelict thieves 5007 | -9/Storage | Entered Materials 5007 | -8/Materials | Evolved 2 slots: Utility x2 5483 | -8/Materials | Garrison activated, responded to threat 5531 | -8/Materials | Discovered new exit (range 10) 5713 | -8/Materials | Entered Factory 5713 | -7/Factory | Evolved 2 slots: Utility x2 5774 | -7/Factory | Identified exit to Lower Caves 5870 | -7/Factory | Repaired Com. Ion Cannon 6499 | -7/Factory | Garrison activated, responded to threat 6570 | -7/Factory | Found Prototype Launcher 6570 | -7/Factory | Identified Rocket Array 7633 | -7/Factory | Entered Lower Caves 7732 | -7/Lower Caves | Learned 8 Factory zone layouts 7738 | -7/Lower Caves | Learned location of 1 exit from Factory 8122 | -7/Lower Caves | Learned location of 1 exit from Factory 9772 | -7/Lower Caves | Discovered new exit (range 11) 10305 | -7/Lower Caves | Entered another Lower Caves area 10309 | -7/Lower Caves | Discovered new exit (range 7) 10861 | -7/Lower Caves | Discovered new exit (range 16) 11015 | -7/Lower Caves | Learned Factory garrison access intel 11206 | -7/Lower Caves | Attracted the attention of an 0b10 base 11228 | -7/Lower Caves | Core integrity fell below 50% 11281 | -7/Lower Caves | Learned location of 1 exit from Research 11646 | -7/Lower Caves | Entered Zion 11813 | -7/Zion | Discovered new exit (range 16) 12157 | -7/Zion | Given A8's code to call for help 12504 | -7/Zion | Acquired unknown access codes intercepted by a Zionite 12738 | -7/Zion | Found Prototype Device 12738 | -7/Zion | Identified Bomb Factory No. 2 12782 | -7/Zion | Learned 4 Factory zone layouts 12928 | -7/Zion | Learned location of Data Miner (-6) 13189 | -7/Zion | Enhanced Grunt warped into view, answering call for help 13190 | -7/Zion | Enhanced Grunt warped into view, answering call for help 13487 | -7/Zion | Entered Proximity Caves 13487 | -6/Proximity Caves | Accompanied by 2 allies 13702 | -6/Proximity Caves | Received a Behemoth hack from an annoying Tinkerer 13992 | -6/Proximity Caves | Spotted B-75 Beast 15834 | -6/Proximity Caves | Discovered new exit (range 10) 16160 | -6/Proximity Caves | Entered Factory 16160 | -6/Factory | Evolved 2 slots: Utility x2 16161 | -6/Factory | Identified exit to Lower Caves 16162 | -6/Factory | Identified exit to Factory 16164 | -6/Factory | Loaded intel: 4 garrison access locations 17626 | -6/Factory | Lost 6 parts (1p2n1u2w) 17711 | -6/Factory | Spotted B-75 Beast 17786 | -6/Factory | Fabricated Adv. Signal Interpreter? 18098 | -6/Factory | Lost 4 parts (2p1n1w) 18151 | -6/Factory | Local fabrication network quarantined 18366 | -6/Factory | Entered Lower Caves 18954 | -6/Lower Caves | Build established: Hauler-Assassin 19237 | -6/Lower Caves | Identified exit to Lower Caves 19312 | -6/Lower Caves | Learned 4 Factory zone layouts 19920 | -6/Lower Caves | Entered another Lower Caves area 20129 | -6/Lower Caves | Learned Factory emergency access door positions 20600 | -6/Lower Caves | Discovered new exit (range 10) 20632 | -6/Lower Caves | Entered Data Miner 20632 | -6/Data Miner | Discovered new exit (range 6) 20670 | -6/Data Miner | Met Data Miner 20894 | -6/Data Miner | Acquired the access code to Warlord's prototype stash 20894 | -6/Data Miner | Learned location of Section 7 (-3) 20910 | -6/Data Miner | Received God Mode back door access code from Data Miner 21329 | -6/Data Miner | Entered Proximity Caves 21400 | -5/Proximity Caves | Spotted B-75 Beast 21466 | -5/Proximity Caves | Core integrity fell below 50% 21470 | -5/Proximity Caves | Destroyed B-75 Beast 22105 | -5/Proximity Caves | Build established: Hauler-Mutant 22304 | -5/Proximity Caves | Lost 3 parts (3n) 22714 | -5/Proximity Caves | Build established: Hauler-Skirmisher 22879 | -5/Proximity Caves | Discovered exit to Factory (range 16) 22900 | -5/Proximity Caves | Entered Factory 22900 | -5/Factory | Evolved 2 slots: Utility x2 22901 | -5/Factory | Identified exit to Upper Caves 23238 | -5/Factory | Build established: Hauler-Mutant 23668 | -5/Factory | Lost 6 parts (2p1n2u1w) 23985 | -5/Factory | Discovered new exit (range 23) 24264 | -5/Factory | Incoming investigation squad redirected 24382 | -5/Factory | Build established: Hauler-Skirmisher 24627 | -5/Factory | Discovered exit to Upper Caves (range 17) 24737 | -5/Factory | Identified exit to Extension 24739 | -5/Factory | Entered Extension 25065 | -5/Extension | Rescued a captive Derelict 25098 | -5/Extension | Energy Cycler disabled 25098 | -5/Extension | Rescued a captive Derelict 25098 | -5/Extension | Rescued a captive Derelict 25099 | -5/Extension | Rescued a captive Derelict 25099 | -5/Extension | Rescued a captive Derelict 25102 | -5/Extension | Rescued a captive Derelict 25120 | -5/Extension | Rescued a captive Derelict 25122 | -5/Extension | Rescued a captive Derelict 25526 | -5/Extension | Build established: Hauler-Mutant 25706 | -5/Extension | Spotted B-75 Beast 25721 | -5/Extension | Allies destroyed B-75 Beast 25733 | -5/Extension | Spotted B-75 Beast 25746 | -5/Extension | Allies destroyed B-75 Beast 25760 | -5/Extension | Lost 3 parts (1n1u1w) 25785 | -5/Extension | Discovered new exit (range 15) 25834 | -5/Extension | Extracted ID and sensor layout for unrecognized location from A7's data core 25939 | -5/Extension | Disrupted transfer network 26373 | -5/Extension | Discovered new exit (range 10) 26375 | -5/Extension | Discovered new exit (range 6) 26400 | -5/Extension | Identified exit to Cetus 26409 | -5/Extension | Entered Cetus 26409 | -5/Cetus | Accompanied by 3 allies 26440 | -5/Cetus | Spotted Cetus Guard 26442 | -5/Cetus | Destroyed Cetus Guard 26443 | -5/Cetus | Destroyed Cetus Guard 26443 | -5/Cetus | Destroyed Cetus Guard 26446 | -5/Cetus | Destroyed Cetus Guard 26763 | -5/Cetus | Discovered new exit (range 15) 26947 | -5/Cetus | Destroyed Cetus Guard 26955 | -5/Cetus | Destroyed Cetus Guard 27004 | -5/Cetus | Spotted Cetus Guard 27005 | -5/Cetus | Destroyed Cetus Guard 27006 | -5/Cetus | Spotted Cetus Guard 27008 | -5/Cetus | Destroyed Cetus Guard 27093 | -5/Cetus | Destroyed 7 combat bots 27127 | -5/Cetus | Discovered new exit (range 15) 27138 | -5/Cetus | Met Revision 17 27253 | -5/Cetus | Identified exit to Archives 27280 | -5/Cetus | Entered Archives 27382 | -5/Archives | Core integrity fell below 50% 27445 | -5/Archives | Unable to access archive contents 27463 | -5/Archives | Unable to access archive contents 27470 | -5/Archives | Discovered new exit (range 16) 27486 | -5/Archives | Unable to access archive contents 27490 | -5/Archives | Discovered new exit (range 15) 27508 | -5/Archives | Unable to access archive contents 27898 | -5/Archives | Discovered new exit (range 22) 28062 | -5/Archives | Identified exit to Hub_04(d) 28063 | -5/Archives | Entered Hub_04(d) 28072 | -5/Hub_04(d) | Discovered new exit (range 18) 28187 | -5/Hub_04(d) | Build established: Hauler-Skirmisher 28371 | -5/Hub_04(d) | Discovered new exit (range 24) 28483 | -5/Hub_04(d) | Core integrity fell below 20% 28534 | -5/Hub_04(d) | Destroyed by G-50 Soldier with Heavy Laser Last Messages --------------- 28519_ K-01 Serf collects debris. 28519_ Penetrated by Slug. 28520_ K-01 Serf collects debris. 28520_ C-30 ARC bursts open, deploying its payload. 28520_ S-27 Virus unfolds itself. 28523_ K-01 Serf collects debris. 28525_ Acquired Prototype Launcher. 28525_ Identified Hvy. Proton Missile Launcher. 28525_ Malfunction: Heat surge (+475). 28526_ Power failure, Quantum Reactor shutdown. 28526_ Quantum Reactor destroyed. 28526_ Dropped Faulty Hvy. Proton Missile Launcher. 28526_ K-01 Serf collects debris. 28528_ Acquired Hvy. Proton Missile Launcher. 28529_ K-01 Serf collects debris. 28532_ Acquired Imp. KE Penetrator. 28532_ Penetrated by Slug. 28532_ K-01 Serf collects debris. 28533_ Slug penetrates H-66 Slayer. 28533_ H-66 Slayer destroyed. Map ----- +----------------------------------------------------+ | ?#?? ?####### ## #####*################# | | ??#### ##### # #####!################# | | ? ??#? ?? # ##### ################# | | ??#???? < + #####!#### ######### | | ??##??+###+## ############### #### " ######### | | ??#? ? ### ############### #### " ######### | | ##???"?"" ### ############### #### " ######### | | ?#?? """" ### ########## # ## ######### | | ?#????"?? ### ########## # + " ######### | | ?????"""" ### ########## # ## " ######### | | ????? ### ########## # ## " ######### | | ????? ### ########## # ## ######### | | ????? ? ### ## ####### #^ ## " ######### | | ????#?######### # # + ## " ######### | | ???? ? # # # # ## " ######### | | ??? ? # # """" # # ## # #### | | ??? ? ? # # """" # # ####+## """# | | ?? ?? # # """" # [# "# | | ??? ?? ?? ? # # """" # # "# | | ??? ?? ? # # # # "# | | ???? ? # !s """" ######+#### ## "?"# | | ?? ?? ?? # %#=[|"""" ## # ##? #?## | | ? ?? ? ? # #=%=**![ ## # ########## | | ????#?+##?####" #*!!!%=%=## """?? # # ? ? | | ???#? #%!=s*ss!## ? # # | | ?? # %;!=[![%]@########### # ? | | ?"" # ???###### #%*]k!gwh#=%!!%##### # " ? | | ??? # ?###?#### #=*%*]]*A#["%%=[ + " ? | | ??? ? ? + #!*===[!!/%"T%[* # ?? | | ??? #??? ??" # # !==*! #=%*!% # ? | | ????????? ?# # !!!!===#%!=*!#### #### ? ? | | ?? ???+??"" ??###+############### #?##########? | | ??### # ?? ? ### #?# !=%####### #####?##? ? | | ????? ?######## ?##?##? ? [ ? ? ? ??#?###? ??? | | ?????? ?##??#?# ### ##? ? ? ? #?#####?"?? | | ??????? ? ? ### #?#?#?# ?? ? ? ? ? ?+???? | | ????? ?? ?##? ##???##? #?###+##### ??????? | | ????? ? ### ?#????#######?!*#? #?? ????? | | ????#?###??+##?? ?? ? #?!%?? ?? ##? ??#???? | | ?????? # ?#? ? ? ??=|## ? ?## ?#?#???? | | ??????? ?????? ? ? ? # "#? ? ## ???##???? | | ???????? "??##?#? ?? ?? ? ?#? ?"""" #?? ##?????? | | ???????"????#?#??? ??? #? "#?"?"??"??? ???????? | | ?????????? ?#??? ??? ? # ?????T ""?" #??????????? | | ????????? ??? ?#? ? ? #????#"" ""?? ##?????????? | | ????????????#????? ?? ?? ##? ? ???#?????????? | | ??????????? ???#?? ??? ???????##???#??#??????????? | | ????????????#?##??#??###? ??? ?? #?????????????? | | ??????????????#?##?####?# ?? ? ?< ??????????????? | | ????????????????????##??# ????? ? ???????????????? | +----------------------------------------------------+ Best States ------------- Heat Dissipation 78 Coolant Potential 80 Energy Generation 25 Energy Capacity 950 Matter Stores 300 Matter Capacity 300 Sight Range 16 Robot Scan Range 20 Terrain Scan Range 24 Terrain Scan Density 210 Jamming Range 14 Power Amplification 20 Armor Coverage 900 Resistance: EM 25 Utility Shielding 66 Weapon Cycling 15 Evasion (%) 44 Targeting Accuracy 16 Core Analysis 8 Armor Integrity Analysis 50 Recoil Reduction 2 Matter Filtering 50 Particle Charging 25 Offensive Hacking 10 Item Schematics ----------------- Hcp. Storage Unit | -9/Materials | Scanalyzed Adv. Signal Interpreter | -7/Lower Caves | Hacked Combat Drone Bay | -6/Data Miner | Free Lgt. Regenerative Plating | -6/Data Miner | Free Exp. Flexi-carbon Leg | -6/Data Miner | Free Exp. Sensor Array | -6/Data Miner | Free Exp. Targeting Computer | -6/Data Miner | Free Exp. Transmission Jammer | -6/Data Miner | Free Exp. ECM Suite | -6/Data Miner | Free Plasma Sword | -6/Data Miner | Free Neutron Cannon | -5/Extension | Hacked Imp. Weapon Cycler | -5/Extension | Hacked Cld. Plasma Cannon | -5/Extension | Hacked Robot Schematics ------------------ S-27 Virus | -6/Data Miner | Free G-50 Soldier | -6/Data Miner | Free G-67 Veteran | -6/Data Miner | Free I-36 Angel | -6/Data Miner | Free E-15 Imp | -5/Extension | Hacked Fabricated ------------ Adv. Signal Interpreter | x2 | -6/Factory Alien Tech Used ----------------- None Achievements -------------- None Challenges ------------ None Game ------ Seed biomechanicalkinetictrap Manual? 1 Play Time 03:13:01 Cumulative 391.8 hours Start 2020.07.09 @ 05:21:41 End 2020.07.09 @ 08:51:20 Sessions 1 Manual Loads 0 Difficulty Rogue Special Mode None Game No. 272 Rogue 272 Adventurer 0 Explorer 0 Win Type - Total 4 Types 4/0/0/0/0/0/0 Lore% 85 Gallery% 85 Achievement% 64 Wizard Run 0 Options --------- ASCII 0 Keyboard 0 Movement Mouse Keybinds 1 Fullscreen 2 Font 24/Smallcaps Map View 76x50 Tactical HUD 1 Map Filters NONE Filters NONE Steam 1 RUN: f6d9f9ca-35a8-46e3-b904-275db61d751c